Workbook

Sheet Calcs
A1: "Poor VPP" | K1: ©2001 Lester Gilbert
A2: A simple plaything to explore. | K2: (Approximate values: speed in m/sec, time in sec, force in gm.)
A4: True wind speed = | D4: 2.5 | K4: Increment = | O4: 0.05 | T4: "On the wind" works for headings from 0 to 180.
A5: Heading = | D5: 90 | E5: degrees | G5: =IF(D5>=40,"(OK)","(Small for on the wind!)") -> (OK) | T5: "Dead run" is for a heading of 180 always.
A7: Boat | B7: Drag forces | F7: On the wind | T7: Dead run
A8: Speed | B8: Fric | C8: Wave | D8: Total | O8: Est | R8: Accum | Z8: Est | AB8: Accum
F9: App wind | H9: AW | I9: Sheet | J9: Sail | K9: Diff | L9: Near max | O9: Max | Q9: Time | R9: time | T9: App wind | U9: Sail | V9: Diff | W9: Near max | Z9: Max | AA9: Time | AB9: time | AC9: Rn | AD9: Rn | AE9: Fn
F10: speed | H10: angle | I10: angle | J10: Drive | K10: Accel | O10: speed | R10: taken | T10: speed | U10: Drive | V10: Accel | Z10: speed | AB10: taken | AC10: sail | AD10: fin | AE10: hull
A11: (OK = don't worry about the ## here:) | G11: OK | M11: OK | N11: OK | P11: OK | X11: OK | Y11: OK
A12: 0 | B12: =$B$39*A12^$C$40 -> 0 | C12: =$B$40*A12^$D$40 -> 0 | D12: =B12+C12 -> 0 | F12: =SQRT((SIN(PI()*$D$5/180)*$D$4)^2+(A12+COS(PI()*$D$5/180)*$D$4)^2) -> 2.5 | G12: =180*ATAN((SIN(PI()*$D$5/180)*$D$4)/(A12+COS(PI()*$D$5/180)*$D$4))/PI() -> 90 | H12: =IF(G12<0,G12+180,G12) -> 90 | I12: =IF(H12-$H$40>90,90,H12-$H$40) -> 75 | J12: =SIN(PI()*I12/180)*$K$40*F12^$J$40*(IF(I12=90,1+(($T$41-1)*(H12-90)/90),1)) -> 60.37036414 | K12: =J12-D12 -> 60.37036414 | L12: =IF(K12<=0,1,0) -> 0 | M12: =IF(L12+L13=1,K12,"") ->  | N12: =IF(L12+L13=1,K13,"") ->  | O12: =IF(M12<>"",$A12+($O$4*M12/(M12-N12)),"") ->  | P12: =IF(O12="","",I12) ->  | Q12: =IF(L12=0,IF(O12="",$O$4*$Q$40/K12,(O12-$A12)*$Q$40/K12),0) -> 0.04141104722 | R12: =IF(Q12>0,Q12+R11,"") -> 0.04141104722 | T12: =$D$4-A12 -> 2.5 | U12: =$K$40*$T$41*T12^$U$40 -> 79.16666667 | V12: =U12-D12 -> 79.16666667 | W12: =IF(V12<=0,1,0) -> 0 | X12: =IF(W12+W13=1,V12,"") ->  | Y12: =IF(W12+W13=1,V13,"") ->  | Z12: =IF(X12<>"",$A12+($O$4*X12/(X12-Y12)),"") ->  | AA12: =IF(W12=0,IF(Z12="",$O$4*$Q$40/V12,(Z12-$A12)*$Q$40/V12),0) -> 0.03157894737 | AB12: =IF(AA12>0,AA12+AB11,"") -> 0.03157894737 | AC12: =IF(O12="","",68500*F12*$AC$40) ->  | AD12: =IF(O12="","",877200*O12*$AD$40) ->  | AE12: =IF(O12="","",O12/$AE$40) -> 
A13: =A12+$O$4 -> 0.05 | B13: 0.0375 | C13: =$B$40*A13^$D$40 -> 0.000125 | D13: =B13+C13 -> 0.037625 | F13: 2.50049995 | G13: =180*ATAN((SIN(PI()*$D$5/180)*$D$4)/(A13+COS(PI()*$D$5/180)*$D$4))/PI() -> 88.85423716 | H13: =IF(G13<0,G13+180,G13) -> 88.85423716 | I13: 73.85423716 | J13: 60.0588485 | K13: 60.0212235 | L13: =IF(K13<=0,1,0) -> 0 | M13: =IF(L13+L14=1,K13,"") ->  | N13: =IF(L13+L14=1,K14,"") ->  | P13: =IF(O13="","",I13) ->  | Q13: 0.04165193333 | R13: 0.08306298055 | T13: 2.45 | U13: 76.03166667 | V13: 75.99404167 | W13: 0 | AA13: 0.03289731596 | AB13: 0.06447626333 | AC13: =IF(O13="","",68500*F13*$AC$40) ->  | AD13: =IF(O13="","",877200*O13*$AD$40) ->  | AE13: =IF(O13="","",O13/$AE$40) -> 
A14: 0.1 | B14: 0.15 | C14: 0.002 | D14: 0.152 | F14: 2.501999201 | G14: 87.70938996 | H14: 87.70938996 | I14: 72.70938996 | J14: 59.77107609 | K14: 59.61907609 | L14: 0 | Q14: 0.04193288733 | R14: 0.1249958679 | T14: 2.4 | U14: 72.96 | V14: 72.808 | W14: 0 | AA14: 0.03433688606 | AB14: 0.09881314939
A15: 0.15 | B15: 0.3375 | C15: 0.010125 | D15: 0.347625 | F15: 2.504495957 | G15: 86.56636964 | H15: 86.56636964 | I15: 71.56636964 | J15: 59.5066163 | K15: 59.1589913 | L15: 0 | Q15: 0.04225900316 | R15: 0.167254871 | T15: 2.35 | U15: 69.95166667 | V15: 69.60404167 | W15: 0 | AA15: 0.03591745451 | AB15: 0.1347306039
A16: 0.2 | B16: 0.6 | C16: 0.032 | D16: 0.632 | F16: 2.507987241 | G16: 85.42607874 | H16: 85.42607874 | I16: 70.42607874 | J16: 59.26501147 | K16: 58.63301147 | L16: 0 | Q16: 0.04263809648 | R16: 0.2098929675 | T16: 2.3 | U16: 67.00666667 | V16: 66.37466667 | W16: 0 | AA16: 0.03766497258 | AB16: 0.1723955765
A17: 0.25 | B17: 0.9375 | C17: 0.078125 | D17: 1.015625 | F17: 2.512468905 | G17: 84.28940686 | H17: 84.28940686 | I17: 69.28940686 | J17: 59.04577808 | K17: 58.03015308 | L17: 0 | Q17: 0.04308105127 | R17: 0.2529740188 | T17: 2.25 | U17: 64.125 | V17: 63.109375 | W17: 0 | AA17: 0.03961376578 | AB17: 0.2120093423
A18: 0.3 | B18: 1.35 | C18: 0.162 | D18: 1.512 | F18: 2.517935662 | G18: 83.15722659 | H18: 83.15722659 | I18: 68.15722659 | J18: 58.84840802 | K18: 57.33640802 | L18: 0 | Q18: 0.04360231285 | R18: 0.2965763316 | T18: 2.2 | U18: 61.30666667 | V18: 59.79466667 | W18: 0 | AA18: 0.04180974892 | AB18: 0.2538190912
A19: 0.35 | B19: 1.8375 | C19: 0.300125 | D19: 2.137625 | F19: 2.524381112 | G19: 82.03038961 | H19: 82.03038961 | I19: 67.03038961 | J19: 58.67237011 | K19: 56.53474511 | L19: 0 | Q19: 0.04422059381 | R19: 0.3407969254 | T19: 2.15 | U19: 58.55166667 | V19: 56.41404167 | W19: 0 | AA19: 0.04431520817 | AB19: 0.2981342993
A20: 0.4 | B20: 2.4 | C20: 0.512 | D20: 2.912 | F20: 2.53179778 | G20: 80.90972308 | H20: 80.90972308 | I20: 65.90972308 | J20: 58.51711164 | K20: 55.60511164 | L20: 0 | Q20: 0.04495989535 | R20: 0.3857568208 | T20: 2.1 | U20: 55.86 | V20: 52.948 | W20: 0 | AA20: 0.04721613659 | AB20: 0.3453504359
A21: 0.45 | B21: 3.0375 | C21: 0.820125 | D21: 3.857625 | F21: 2.540177159 | G21: 79.79602628 | H21: 79.79602628 | I21: 64.79602628 | J21: 58.38206001 | K21: 54.52443501 | L21: 0 | Q21: 0.04585100239 | R21: 0.4316078232 | T21: 2.05 | U21: 53.23166667 | V21: 49.37404167 | W21: 0 | AA21: 0.05063389416 | AB21: 0.3959843301
A22: 0.5 | B22: 3.75 | C22: 1.25 | D22: 5 | F22: 2.549509757 | G22: 78.69006753 | H22: 78.69006753 | I22: 63.69006753 | J22: 58.26662456 | K22: 53.26662456 | L22: 0 | Q22: 0.04693370419 | R22: 0.4785415274 | T22: 2 | U22: 50.66666667 | V22: 45.66666667 | W22: 0 | AA22: 0.05474452555 | AB22: 0.4507288556
A23: 0.55 | B23: 4.5375 | C23: 1.830125 | D23: 6.367625 | F23: 2.559785147 | G23: 77.59258147 | H23: 77.59258147 | I23: 62.59258147 | J23: 58.17019828 | K23: 51.80257328 | L23: 0 | Q23: 0.04826015084 | R23: 0.5268016782 | T23: 1.95 | U23: 48.165 | V23: 41.797375 | W23: 0 | AA23: 0.0598123686 | AB23: 0.5105412242
A24: 0.6 | B24: 5.4 | C24: 2.592 | D24: 7.992 | F24: 2.570992026 | G24: 76.50426672 | H24: 76.50426672 | I24: 61.50426672 | J24: 58.09215973 | K24: 50.10015973 | L24: 0 | Q24: 0.04990004051 | R24: 0.5767017187 | T24: 1.9 | U24: 45.72666667 | V24: 37.73466667 | W24: 0 | AA24: 0.0662520759 | AB24: 0.5767933001
A25: 0.65 | B25: 6.3375 | C25: 3.570125 | D25: 9.907625 | F25: 2.583118271 | G25: 75.4257838 | H25: 75.4257838 | I25: 60.4257838 | J25: 58.03187492 | K25: 48.12424992 | L25: 0 | Q25: 0.05194886163 | R25: 0.6286505803 | T25: 1.85 | U25: 43.35166667 | V25: 33.44404167 | W25: 0 | AA25: 0.07475173081 | AB25: 0.6515450309
A26: 0.7 | B26: 7.35 | C26: 4.802 | D26: 12.152 | F26: 2.596150997 | G26: 74.35775354 | H26: 74.35775354 | I26: 59.35775354 | J26: 57.98869917 | K26: 45.83669917 | L26: 0 | Q26: 0.05454144921 | R26: 0.6831920295 | T26: 1.8 | U26: 41.04 | V26: 28.888 | W26: 0 | AA26: 0.08654112434 | AB26: 0.7380861553
A27: 0.75 | B27: 8.4375 | C27: 6.328125 | D27: 14.765625 | F27: 2.610076627 | G27: 73.30075577 | H27: 73.30075577 | I27: 58.30075577 | J27: 57.96197902 | K27: 43.19635402 | L27: 0 | Q27: 0.05787525491 | R27: 0.7410672845 | T27: 1.75 | U27: 38.79166667 | V27: 24.02604167 | W27: 0 | AA27: 0.1040537611 | AB27: 0.8421399164
A28: 0.8 | B28: 9.6 | C28: 8.192 | D28: 17.792 | F28: 2.62488095 | G28: 72.25532837 | H28: 72.25532837 | I28: 57.25532837 | J28: 57.95105406 | K28: 40.15905406 | L28: 0 | Q28: 0.06225246233 | R28: 0.8033197468 | T28: 1.7 | U28: 36.60666667 | V28: 18.81466667 | W28: 0 | AA28: 0.132875062 | AB28: 0.9750149784
A29: 0.85 | B29: 10.8375 | C29: 10.440125 | D29: 21.277625 | F29: 2.640549185 | G29: 71.22196678 | H29: 71.22196678 | I29: 56.22196678 | J29: 57.95525878 | K29: 36.67763378 | L29: 0 | Q29: 0.06816143088 | R29: 0.8714811777 | T29: 1.65 | U29: 34.485 | V29: 13.207375 | W29: 0 | AA29: 0.1892881818 | AB29: 1.16430316
A30: 0.9 | B30: 12.15 | C30: 13.122 | D30: 25.272 | F30: 2.657066051 | G30: 70.20112365 | H30: 70.20112365 | I30: 55.20112365 | J30: 57.97392434 | K30: 32.70192434 | L30: 0 | Q30: 0.07644810055 | R30: 0.9479292782 | T30: 1.6 | U30: 32.42666667 | V30: 7.154666667 | W30: 0 | AA30: 0.3494222885 | AB30: 1.513725449
A31: 0.95 | B31: 13.5375 | C31: 16.290125 | D31: 29.827625 | F31: 2.674415824 | G31: 69.19320899 | H31: 69.19320899 | I31: 54.19320899 | J31: 58.00638024 | K31: 28.17875524 | L31: 0 | Q31: 0.08871931987 | R31: 1.036648598 | T31: 1.55 | U31: 30.43166667 | V31: 0.6040416667 | W31: 0 | X31: 0.6040416667 | Y31: -6.5 | Z31: 0.9542513945 | AA31: 0.3519123504 | AB31: 1.865637799
A32: 1 | B32: 15 | C32: 20 | D32: 35 | F32: 2.692582404 | G32: 68.19859051 | H32: 68.19859051 | I32: 53.19859051 | J32: 58.05195601 | K32: 23.05195601 | L32: 0 | Q32: 0.1084506668 | R32: 1.145099265 | T32: 1.5 | U32: 28.5 | V32: -6.5 | W32: 1 | AA32: 0
A33: 1.05 | B33: 16.5375 | C33: 24.310125 | D33: 40.847625 | F33: 2.711549373 | G33: 67.21759427 | H33: 67.21759427 | I33: 52.21759427 | J33: 58.1099827 | K33: 17.2623577 | L33: 0 | Q33: 0.1448237861 | R33: 1.289923051 | T33: 1.45 | U33: 26.63166667 | V33: -14.21595833 | W33: 1 | AA33: 0
A34: 1.1 | B34: 18.15 | C34: 29.282 | D34: 47.432 | F34: 2.731300057 | G34: 66.25050551 | H34: 66.25050551 | I34: 51.25050551 | J34: 58.17979441 | K34: 10.74779441 | L34: 0 | Q34: 0.2326058636 | R34: 1.522528915 | T34: 1.4 | U34: 24.82666667 | V34: -22.60533333 | W34: 1 | AA34: 0
A35: 1.15 | B35: 19.8375 | C35: 34.980125 | D35: 54.817625 | F35: 2.751817581 | G35: 65.29756977 | H35: 65.29756977 | I35: 50.29756977 | J35: 58.26072959 | K35: 3.443104588 | L35: 0 | M35: 3.443104588 | N35: -4.719867623 | O35: 1.171089773 | P35: 50.29756977 | Q35: 0.306260996 | R35: 1.828789911 | T35: 1.35 | U35: 23.085 | V35: -31.732625 | W35: 1 | AA35: 0 | AC35: 47124.87608 | AD35: 61636.79692 | AE35: 0.3705980294
A36: 1.2 | B36: 21.6 | C36: 41.472 | D36: 63.072 | F36: 2.773084925 | G36: 64.35899418 | H36: 64.35899418 | I36: 49.35899418 | J36: 58.35213238 | K36: -4.719867623 | L36: 1 | Q36: 0 | R36: =IF(Q36>0,Q36+R35,"") ->  | T36: 1.3 | U36: 21.40666667 | V36: -41.66533333 | W36: 1 | AA36: 0
A37: 1.25 | B37: 23.4375 | C37: 48.828125 | D37: 72.265625 | F37: 2.795084972 | G37: 63.43494882 | H37: 63.43494882 | I37: 48.43494882 | J37: 58.45335373 | K37: -13.81227127 | L37: 1 | M37: =IF(L37+L38=1,K37,"") ->  | N37: =IF(L37+L38=1,K38,"") ->  | Q37: 0 | R37: =IF(Q37>0,Q37+R36,"") ->  | T37: 1.25 | U37: 19.79166667 | V37: -52.47395833 | W37: 1 | X37: =IF(W37+W38=1,V37,"") ->  | Y37: =IF(W37+W38=1,V38,"") ->  | AA37: 0
L38: 1 | W38: 1
A39: F scale | B39: 15 | C39: F exp | D39: W exp | F39: Cl max | H39: Attack | I39: =P39 -> 50.29756977 | J39: R exp | K39: S scale | M39: =SUM(O12:O36) -> 1.171089773 | O39: =M39*COS(D5*PI()/180) -> 7.173794129e-17 | P39: =SUM(P12:P37) -> 50.29756977 | Q39: T mult | R39: =SUM(Q12:Q37) -> 1.828789911 | T39: Cd max | U39: U exp | X39: =SUM(Z12:Z36) -> 0.9542513945 | AB39: =SUM(AA12:AA37) -> 1.865637799 | AC39: S chord | AD39: F chord | AE39: sqrt(g)
A40: W scale | B40: 20 | C40: 2 | D40: 4 | F40: 1.5 | H40: 15 | I40: Sheet | J40: 2 | K40: 10 | L40: =IF(SUM(L12:L37)<1,"Err","OK") -> OK | M40: Max | O40: VMG | Q40: 50 | R40: Accum | T40: 1.9 | U40: 2 | W40: =IF(SUM(W12:W37)<1,"Err","OK") -> OK | X40: Max | AB40: Accum | AC40: 0.25 | AD40: 0.06 | AE40: 3.16
I41: at max | M41: speed | R41: time | T41: =T40/F40 -> 1.266666667 | X41: speed | AB41: time
AC42: =SUM(AC12:AC37) -> 47124.87608 | AD42: =SUM(AD12:AD37) -> 61636.79692 | AE42: =SUM(AE12:AE37) -> 0.3705980294
A43: INPUTS | R43: OUTPUTS | AC43: Sail | AD43: Fin | AE43: Hull
A44: True wind speed | C44: The wind speed. Max for IOM around 2.5 when in 'A' rig. | R44: Max speed | U44: Estimated max boat speed, on or off the wind. | AC44: Rn | AD44: Rn | AE44: Fn
A45: Heading | C45: Boat heading with respect to true wind. Use 40 when close-hauled. | R45: VMG | U45: Velocity made good directly to windward.
A46: Increment | C46: Increment of speed. Smaller for light wind, larger for stronger. Start with 0.05. | R46: Accum time | U46: Time to reach max speed, on or off the wind.
A48: Other input parameters | R48: Theoretical max | U48: (For IOM) | AA48: Fn
A49: Attack | C49: Nominal angle of attack of sails to apparent wind. Use 15 or so. | R49: Hull waterline length (ft) | V49: LWL | Z49: 3.28
A50: F scale | C50: Multiplier for skin friction. Use 15 or so to get something in grams. | R50: Hull speed (knots) | Z50: =1.32*SQRT(Z49) -> 2.390621676
A51: W scale | C51: Multiplier for wave drag. Use 20 or so to get something in grams. | R51: Hull speed (mph) | Z51: =1.15*Z50 -> 2.749214928
A52: S scale | C52: Multiplier for sail drive force. Use 10 or so to get something in grams. | R52: Hull speed (ft/sec) | Z52: =Z50*6076/3600 -> 4.034838141
A53: T mult | C53: Multiplier to get the time to reflect something reasonable in seconds. Try 50. | R53: Hull speed (m/sec) | Z53: =Z52/3.281 -> 1.229758653 | AA53: =Z53/AE40 -> 0.3891641307
A54: F exp | C54: Exponent for skin friction. Usually 2.
A55: W exp | C55: Exponent for wave drag. I use 4, other folks might prefer 3.
A56: Cl max (reach) | C56: Coefficient of lift, reaching. Something like 1.3 to 1.5.
A57: Cd max (run) | C57: Coefficient of drag, running. Something like 1.8 or 1.9.
A58: R exp | C58: Exponent for drive from reaching. Use 2.
A59: U exp | C59: Exponent for drive from running. Use 2.
A61: "Max" | D61: Set the heading required at the top of the spreadsheet.
D62: Use the "Max" macro (CTRL-m) to populate this table.
E63: (Heading is set to | I63: =D5 -> 90 | J63: here.)
F65: =F7 -> On the wind | J65: =T7 -> Dead run
D66: Wind | F66: Max | H66: Time to | J66: Max | K66: Time to
D67: speed | F67: speed | H67: max | J67: speed | K67: max
B69: Start | C69: 0.25 | D69: =C69 -> 0.25 | F69: 0.19540617 | H69: 23.89628655 | J69: 0.1187875221 | K69: 15.55088984
B70: Incr | C70: 0.25 | D70: =D69+$C$70 -> 0.5 | F70: 0.3673851738 | H70: 14.21312312 | J70: 0.2347014288 | K70: 8.604047767
D71: =D70+$C$70 -> 0.75 | F71: 0.5137987226 | H71: 9.212769832 | J71: 0.3452335779 | K71: 5.921818194
D72: 1 | F72: 0.6393906492 | H72: 5.926743785 | J72: 0.4492246422 | K72: 4.495563014
D73: 1.25 | F73: 0.7500937127 | H73: 5.189410407 | J73: 0.5464794124 | K73: 3.625723549
D74: 1.5 | F74: 0.8486748521 | H74: 3.427649512 | J74: 0.6375005167 | K74: 3.062214197
D75: 1.75 | F75: 0.9381008018 | H75: 2.85424611 | J75: 0.7231725372 | K75: 2.699896879
D76: 2 | F76: 1.020927093 | H76: 2.496741659 | J76: 0.8045034555 | K76: 2.507765034
D77: 2.25 | F77: 1.098989908 | H77: 1.972093406 | J77: 0.8809363309 | K77: 1.90499608
D78: 2.5 | F78: 1.171089773 | H78: 1.828789911 | J78: 0.9542513945 | K78: 1.865637799
A80: "Polar" | D80: Set the wind speed required at the top of the spreadsheet.
D81: Use the "Polar" macro (CTRL-p) to populate this table.
D82: If the resulting polar looks wrong, check the 'increment' used.
E83: (Wind speed is set to | I83: =D4 -> 2.5 | J83: here.)
A84: Heading | B84: Max speed
A85: 0 | B85: 0
A86: 15 | B86: 0
A87: 30 | B87: 0.7428896436
A88: 45 | B88: 0.9763467053
A89: 60 | B89: 1.099663144
A90: 75 | B90: 1.158618312
A91: 90 | B91: 1.171089773
A92: 105 | B92: 1.14670565
A93: 120 | B93: 1.091346275
A94: 135 | B94: 1.034815611
A95: 150 | B95: 0.9842775277
A96: 165 | B96: 0.9560693188
A97: 180 | B97: 0.9542513945
A98: 195 | B98: =B96 -> 0.9560693188
A99: 210 | B99: =B95 -> 0.9842775277
A100: 225 | B100: =B94 -> 1.034815611
A101: 240 | B101: =B93 -> 1.091346275
A102: 255 | B102: =B92 -> 1.14670565
A103: 270 | B103: =B91 -> 1.171089773
A104: 285 | B104: =B90 -> 1.158618312
A105: 300 | B105: =B89 -> 1.099663144
A106: 315 | B106: =B88 -> 0.9763467053
A107: 330 | B107: =B87 -> 0.7428896436
A108: 345 | B108: =B86 -> 0

Sheet Graphs
